Workbook

Sheet MSU
B1: Sami Pollari | E1: 21.7.1988
B2: SUPERPESIS | E2: Runkosarja | I2: Kärkilyönnit (KL), pesänvälit | P2: Ylempi loppusarja | W2: Alempi loppusarja | AD2: Arvo-ottelut | AH2: Mitalit
B3: Vuosi | C3: Sija | D3: Seura | E3: OTT | F3: KUN | G3: LÖI | H3: TOI | I3: KL | J3: 0 > 1 | K3: 1 > 2 | L3: 2 > 3 | M3: 3 > k | N3: KL-% | P3: OTT | Q3: KUN | R3: LÖI | S3: TOI | T3: KL | U3: KL-% | W3: OTT | X3: KUN | Y3: LÖI | Z3: TOI | AA3: KL | AB3: KL-% | AD3: IL | AE3: LL | AF3: hSM | AG3: K | AH3: H | AI3: P
B4: 2005 | C4: 2. | D4: SMJ 2 | F4: suomensarja
B5: 2006 | C5: 2. | D5: SMJ 2 | F5: suomensarja
B6: 2006 | C6: 1. | D6: SMJ | F6: ykköspesis
B7: 2007 | C7: 3. | D7: SMJ 2 | F7: suomensarja
B8: 2007 | C8: 11. | D8: SMJ | E8: 10 | F8: 0 | G8: 0 | H8: 3 | I8: 19 | J8: 18 | K8: 0 | L8: 1 | M8: 0 | N8: 42.2 %
B9: 2008
B10: 2009
B11: 2010 | C11: 1. | D11: SMJ | F11: suomensarja
B12: Yhteensä | E12: 10 | F12: 0 | G12: 0 | H12: 3 | I12: 19 | J12: 18 | K12: 0 | L12: 1 | M12: 0 | N12: 42.2 % | P12: 0 | Q12: 0 | R12: 0 | S12: 0 | T12: 0 | U12: 0.0 % | W12: =PRODUCT(E18) -> 0 | X12: =PRODUCT(F18) -> 0 | Y12: 0 | Z12: 0 | AA12: 0 | AB12: =PRODUCT(N18) -> 0.0 % | AD12: 0 | AE12: 0 | AF12: 0 | AG12: 0 | AH12: 0 | AI12: 0
B13: Pesispörssi | D13: 12.7
B15: URA SUPERISSA | E15: OTT | F15: KUN | G15: LÖI | H15: TOI | I15: KL | K15: ka/L | L15: ka/T | M15: ka/KL | N15: KL-% | O15: 34.04255319 | P15: ENSIMMÄISET RUNKOSARJASSA
B16: Runkosarja | E16: 10 | F16: 0 | G16: 0 | H16: 3 | I16: 19 | K16: 0.00 | L16: 0.30 | M16: 1.90 | N16: 42.2 % | P16: Ottelu | R16: 15.05. 2007 SMJ - PuPe 0-1 (1-5, 2-2) | Z16: 1. ottelu | AB16: 18 v 9 kk 24 pv
B17: Ylempi loppusarja | P17: Lyöty
B18: Alempi loppusarja | O18: 34.04255319 | P18: Tuotu | R18: 24.07. 2007 JoMa - SMJ 2-1 (5-1, 2-6, 1-0) | Z18: 5. ottelu | AB18: 19 v 0 kk 3 pv
B19: KAIKKI | E19: 10 | F19: 0 | G19: 0 | H19: 3 | I19: 19 | K19: 0.00 | L19: 0.30 | M19: 1.90 | N19: 42.2 % | P19: Kunnari
B21: Seurat | D21: SMJ = Seinäjoen Maila-Jussit (1932), kasvattajaseura

Sheet MYP, MSS
B1: Sami Pollari | E1: 21.7.1988
B2: YKKÖSPESIS | E2: Runkosarja | L2: Runkosarja TOP-10 | Q2: Jatkosarjat | X2: SUOMENSARJA | AA2: Runkosarja | AH2: Runkosarja TOP-10 | AM2: Jatkosarjat
B3: Vuosi | C3: Sija | D3: Seura | E3: OTT | F3: KUN | G3: LÖI | H3: TOI | I3: KL | J3: KL-% | L3: LÖI | M3: TOI | N3: L+T | O3: KL | Q3: OTT | R3: KUN | S3: LÖI | T3: TOI | U3: KL | V3: KL-% | X3: Vuosi | Y3: Sija | Z3: Seura | AA3: OTT | AB3: KUN | AC3: LÖI | AD3: TOI | AE3: KL | AF3: KL-% | AH3: LÖI | AI3: TOI | AJ3: L+T | AK3: KL | AM3: OTT | AN3: KUN | AO3: LÖI | AP3: TOI | AQ3: KL | AR3: KL-%
X4: 2005 | Y4: 2. | Z4: SMJ 2 | AA4: 13 | AB4: 1 | AC4: 4 | AD4: 21 | AE4: 50 | AF4: 74.6 % | AG4: 67 | AM4: 2 | AN4: 0 | AO4: 0 | AP4: 2 | AQ4: 8 | AR4: 72.7 % | AS4: 11
B5: 2006 | C5: 1. | D5: SMJ | E5: 1 | F5: 0 | G5: 0 | H5: 2 | I5: 4 | J5: 100.0 % | K5: 4 | X5: 2006 | Y5: 2. | Z5: SMJ 2 | AA5: 3 | AB5: 0 | AC5: 1 | AD5: 2 | AE5: 15 | AF5: 88.2 % | AG5: 17
X6: 2007 | Y6: 3. | Z6: SMJ 2 | AA6: 8 | AB6: 0 | AC6: 3 | AD6: 23 | AE6: 46 | AF6: 73.0 % | AG6: 63
X8: 2010 | Y8: 1. | Z8: SMJ | AA8: 1 | AB8: 0 | AC8: 0 | AD8: 0 | AE8: 2 | AF8: 50.0 % | AG8: 4
B9: YHTEENSÄ | E9: =SUM(E4:E8) -> 1 | F9: =SUM(F4:F8) -> 0 | G9: =SUM(G4:G8) -> 0 | H9: =SUM(H4:H8) -> 2 | I9: =SUM(I4:I8) -> 4 | J9: 100.0 % | K9: =SUM(K4:K8) -> 4 | Q9: =SUM(Q4:Q8) -> 0 | R9: =SUM(R4:R8) -> 0 | S9: =SUM(S4:S8) -> 0 | T9: =SUM(T4:T8) -> 0 | U9: =SUM(U4:U8) -> 0 | V9: 0.0 % | W9: =SUM(W4:W8) -> 0 | X9: YHTEENSÄ | AA9: =SUM(AA4:AA8) -> 25 | AB9: =SUM(AB4:AB8) -> 1 | AC9: =SUM(AC4:AC8) -> 8 | AD9: =SUM(AD4:AD8) -> 46 | AE9: =SUM(AE4:AE8) -> 113 | AF9: =PRODUCT(AE9/AG9) -> 74.8 % | AG9: =SUM(AG4:AG8) -> 151 | AM9: =SUM(AM4:AM8) -> 2 | AN9: =SUM(AN4:AN8) -> 0 | AO9: =SUM(AO4:AO8) -> 0 | AP9: =SUM(AP4:AP8) -> 2 | AQ9: =SUM(AQ4:AQ8) -> 8 | AR9: =PRODUCT(AQ9/AS9) -> 72.7 % | AS9: =SUM(AS4:AS8) -> 11
B11: KAIKKI OTTELUT | E11: OTT | F11: KUN | G11: LÖI | H11: TOI | I11: KL | J11: KL-% | L11: ka/L | M11: ka/T | N11: ka/l+t | O11: ka/kl | R11: Seurat | T11: SMJ = Seinäjoen Maila-Jussit (1932), kasvattajaseura
B12: SUPERPESIS | E12: 10 | F12: 0 | G12: 0 | H12: 3 | I12: 19 | J12: 42.2 % | K12: =PRODUCT(I12/J12) -> 45.02369668 | L12: =PRODUCT((F12+G12)/E12) -> 0.00 | M12: =PRODUCT(H12/E12) -> 0.30 | N12: =PRODUCT((F12+G12+H12)/E12) -> 0.30 | O12: =PRODUCT(I12/E12) -> 1.90
B13: YKKÖSPESIS | E13: =PRODUCT(E9+Q9) -> 1 | F13: =PRODUCT(F9+R9) -> 0 | G13: =PRODUCT(G9+S9) -> 0 | H13: =PRODUCT(H9+T9) -> 2 | I13: =PRODUCT(I9+U9) -> 4 | J13: =PRODUCT(I13/K13) -> 100.0 % | K13: =PRODUCT(K9+W9) -> 4 | L13: =PRODUCT((F13+G13)/E13) -> 0.00 | M13: =PRODUCT(H13/E13) -> 2.00 | N13: =PRODUCT((F13+G13+H13)/E13) -> 2.00 | O13: =PRODUCT(I13/E13) -> 4.00
B14: SUOMENSARJA | E14: =PRODUCT(AA9+AM9) -> 27 | F14: =PRODUCT(AB9+AN9) -> 1 | G14: =PRODUCT(AC9+AO9) -> 8 | H14: =PRODUCT(AD9+AP9) -> 48 | I14: =PRODUCT(AE9+AQ9) -> 121 | J14: =PRODUCT(I14/K14) -> 74.7 % | K14: =PRODUCT(AG9+AS9) -> 162 | L14: =PRODUCT((F14+G14)/E14) -> 0.33 | M14: =PRODUCT(H14/E14) -> 1.78 | N14: =PRODUCT((F14+G14+H14)/E14) -> 2.11 | O14: =PRODUCT(I14/E14) -> 4.48
B15: YHTEENSÄ | E15: =SUM(E12:E14) -> 38 | F15: =SUM(F12:F14) -> 1 | G15: 8 | H15: 53 | I15: 144 | J15: =PRODUCT(I15/K15) -> 68.2 % | K15: =SUM(K12:K14) -> 211.0236967 | L15: =PRODUCT((F15+G15)/E15) -> 0.24 | M15: =PRODUCT(H15/E15) -> 1.39 | N15: =PRODUCT((F15+G15+H15)/E15) -> 1.63 | O15: =PRODUCT(I15/E15) -> 3.79
